[Event "1st Rio Chess Open 2022"]
[Site "Rio de Janeiro"]
[Date "2022.04.24"]
[Round "5.6"]
[White "Mekhitarian, Krikor Sevag"]
[Black "Sztokbant, Bernardo Vainzoff"]
[Result "1-0"]
[ECO "D31"]
[WhiteElo "2569"]
[BlackElo "2190"]
[Annotator "TA"]
[PlyCount "91"]
[EventDate "2022.04.18"]
[EventType "swiss"]
[EventCountry "BRA"]
[SourceTitle "playchess.com"]
[Source "ChessBase"]
[SourceQuality "1"]
[TimeControl "5400+30"]

{[%evp 14,91,29,18,22,19,37,33,39,27,33,30,32,31,27,9,46,43,56,47,57,33,56,43,66,67,72,67,116,0,85,75,113,110,143,118,135,108,133,133,131,128,260,223,212,179,233,222,244,248,214,174,192,0,197,91,244,255,289,282,278,268,286,306,300,311,429,398,342,301,729,692,718,705,29984,29985,29985,29986,29986,702]} 1. d4 {[%emt 0:06:14] Krasenkow,Michal} d5 {[%emt 0:00:42]} 2. c4 {[%emt 0:00:16]} e6 {[%emt 0:01:07]} 3. Nc3 {[%emt 0:03:28]} Be7 {[%emt 0:00:47]} 4. cxd5 {[%emt 0:02:30]} exd5 {[%emt 0:00:11]} 5. Bf4 {[%emt 0:00:02]} c6 {[%emt 0:00:41]} 6. e3 {[%emt 0:00:01]} Bd6 {[%emt 0:08:23]} 7. Bxd6 {[%emt 0:01:49]} Qxd6 {[%emt 0:00:09]} 8. Bd3 {[%emt 0:00:02]} Ne7 {[%emt 0:01:23] D31: Queen's Gambit Declined: Semi-Slav without ...Nf6 (+ Marshall Gambit and Noteboom) and Exchange Variation lines without ...Nf6.} 9. Qc2 {[%emt 0:01:49]} g6 {[%emt 0:01:59]} 10. f3 {[%emt 0:00:07]} Nd7 {[%emt 0:04:41] White is slightly better.} 11. Nge2 {[%emt 0:11:27]} Nb6 {[%emt 0:15:22] [#]} 12. O-O $146 {[%emt 0:11:22]} ({Predecessor:} 12. e4 Qf6 13. O-O O-O 14. Rae1 Qh4 15. Qc1 Bd7 16. g3 Qf6 17. e5 Qg7 18. Nf4 {1-0 (50) Onischuk,A (2699)-Kovacs,G (2516) Ohrid 2009 CBM 133 [Krasenkow,Michal]}) 12... O-O {[%emt 0:11:51]} 13. Rad1 {[%emt 0:07:01]} Be6 {[%emt 0:03:51]} 14. e4 {[%emt 0:04:30]} f6 {[%emt 0:03:15]} 15. Qc1 {[%emt 0:01:24]} Kg7 {[%emt 0:01:44]} 16. Nf4 {[%emt 0:17:56]} Bg8 {[%emt 0:06:58]} 17. Kh1 {[%emt 0:02:21]} Rfe8 {[%emt 0:08:34]} 18. Rfe1 {[%emt 0:01:52]} Nd7 {[%emt 0:04:39] Prevents e5.} 19. Bc2 {[%emt 0:01:50][%cal Oe4e5]} Rad8 {[%emt 0:04:26]} 20. Bb3 {[%emt 0:03:26]} Nb6 {[%emt 0:05:16]} (20... Kh8 $14) 21. Bc2 {[%emt 0:04:53]} (21. e5 $16 Qb8 22. exf6+ Kxf6 23. Re2) 21... Qd7 {[%emt 0:06:22]} (21... Nd7 $1 $11 {keeps the balance.}) 22. b3 {[%emt 0:02:20]} Nbc8 {[%emt 0:02:43]} 23. e5 {[%emt 0:08:43]} Rf8 {[%emt 0:02:22]} 24. Nd3 $36 {[%emt 0:02:59][%mdl 2048] White is on the roll. &Bianco is much more active. The black rooks are badly placed.} b6 {[%emt 0:00:56]} 25. Re2 {[%emt 0:00:46]} fxe5 {[%emt 0:02:12]} 26. Nxe5 {[%emt 0:00:09]} Qd6 {[%emt 0:00:19]} 27. Rde1 {[%emt 0:01:45]} h5 {[%emt 0:02:02]} (27... Kh8 $16 {was called for.} 28. Qd1 Qf6) 28. Nd1 {[%emt 0:01:37][%cal Bc3d1,Bd1f2,Bf2h3,Bh3g5][%mdl 32]} Qf6 {[%emt 0:00:41]} 29. Bd3 {[%emt 0:00:28]} Qf4 {[%emt 0:00:41]} (29... Nd6 $142 30. g4 (30. Nxc6 Nxc6 31. Qxc6 Qxd4 $14) 30... Qf4) 30. Qc3 $18 {[%emt 0:00:47]} Rd6 {[%emt 0:00:37]} 31. Nf2 {[%emt 0:00:07]} Qf6 {[%emt 0:00:19]} 32. Ba6 {[%emt 0:00:57]} Nf5 {[%emt 0:00:30]} 33. Bd3 $2 {[%emt 0:00:46]} ({White should play} 33. Nh3 $18) 33... Nce7 $2 {[%emt 0:00:29]} (33... Nfe7 $1 $11) 34. Kg1 {[%emt 0:00:20]} (34. Nh3 $18 {is more deadly.}) 34... g5 $2 {[%emt 0:00:36]} (34... Qh4 $16) 35. Nh3 {[%emt 0:00:26]} Be6 {[%emt 0:00:36]} 36. f4 {[%emt 0:00:27]} g4 {[%emt 0:00:22]} 37. Ng5 {[%emt 0:00:01][%cal Oe5g4] Hoping for Nxg4!} Bc8 {[%emt 0:00:24]} 38. g3 {[%emt 0:00:23]} Kg8 {[%emt 0:00:38]} 39. b4 {[%emt 0:00:11]} b5 {[%emt 0:00:22]} 40. Bc2 {[%emt 0:00:42]} Rdd8 {[%emt 0:00:39]} 41. Qd3 {[%emt 0:00:27]} Kg7 $2 {[%emt 0:01:11] [#]} (41... Qd6 42. Qc3 Rf6) 42. Nxg4 $1 {[%emt 0:00:40][%mdl 512]} hxg4 {[%emt 0:00:00] [#]} 43. Rxe7+ {[%emt 0:00:04][%mdl 512]} Qxe7 {[%emt 0:00:09]} (43... Kg8 44. R1e5) 44. Rxe7+ {[%emt 0:00:06] White mates.} Nxe7 {[%emt 0:00:03]} 45. Qh7+ {[%emt 0:00:10]} Kf6 {[%emt 0:00:05]} 46. Qh6+ {[%emt 0:00:15] Weighted Error Value: White=0.21 (precise) /Black=0.52} 1-0

[Event "1st Rio Chess Open 2022"]
[Site "Rio de Janeiro"]
[Date "2022.04.24"]
[Round "6.1"]
[White "Hoffman, Alejandro"]
[Black "Rodriguez Vila, Andres"]
[Result "1/2-1/2"]
[ECO "D79"]
[WhiteElo "2389"]
[BlackElo "2435"]
[Annotator "TA"]
[PlyCount "21"]
[EventDate "2022.04.18"]
[EventType "swiss"]
[EventCountry "BRA"]
[SourceTitle "playchess.com"]
[Source "ChessBase"]
[SourceQuality "1"]
[TimeControl "5400+30"]

{[%evp 19,20,0,0]} 1. Nf3 {[%emt 0:00:03]} Nf6 {[%emt 0:00:04]} 2. g3 {[%emt 0:00:08]} g6 {[%emt 0:00:05]} 3. Bg2 {[%emt 0:00:05]} Bg7 {[%emt 0:00:04]} 4. O-O {[%emt 0:00:07]} d5 {[%emt 0:00:04]} 5. d4 {[%emt 0:00:08]} O-O {[%emt 0:00:06]} 6. c4 {[%emt 0:00:04]} c6 {[%emt 0:00:06]} 7. cxd5 {[%emt 0:00:18]} cxd5 {[%emt 0:00:05]} 8. Ne5 {[%emt 0:00:08]} Nbd7 {[%emt 0:00:15]} 9. Nc3 {[%emt 0:00:15]} e6 {[%emt 0:00:04]} 10. Nxd7 {[%emt 0:00:18]} Bxd7 {[%emt 0:00:06] [#]} {Predecessor:} 11. Bf4 $146 {D79: Fianchetto Grünfeld: Symmetrical Variation (6 0-0 c6 7 cxd5 cxd5).} 1/2-1/2

[Event "1st Rio Chess Open 2022"]
[Site "Rio de Janeiro"]
[Date "2022.04.24"]
[Round "6.2"]
[White "Aranha Filho, Alvaro Z."]
[Black "Librelato, Kathie Goulart"]
[Result "0-1"]
[ECO "E73"]
[WhiteElo "2226"]
[BlackElo "2156"]
[Annotator "TA"]
[PlyCount "80"]
[EventDate "2022.04.18"]
[EventType "swiss"]
[EventCountry "BRA"]
[SourceTitle "playchess.com"]
[Source "ChessBase"]
[SourceQuality "1"]
[TimeControl "5400+30"]

{[%evp 20,80,32,37,48,15,59,55,57,50,56,49,54,50,52,46,63,19,18,16,13,14,44,-233,0,0,0,-299,-287,-408,-395,-412,-397,-612,-627,-625,-615,-606,-601,-801,-736,-29986,-29987,-29987,-29986,-29986,-29987,-29987,-29979,-29979,-29980,-29994,-29995,-29995,-29993,-29993,-12812,-29993,-29994,-29997,-29998,-29998,-29999]} 1. d4 {[%emt 0:00:05]} Nf6 {[%emt 0:00:07]} 2. c4 {[%emt 0:00:06]} g6 {[%emt 0:00:04]} 3. Nc3 {[%emt 0:00:03]} Bg7 {[%emt 0:00:05]} 4. e4 {[%emt 0:00:04]} d6 {[%emt 0:00:05]} 5. Be2 {[%emt 0:00:05]} O-O {[%emt 0:00:10]} 6. Bg5 {[%emt 0:00:05]} Na6 {[%emt 0:00:10]} 7. Qd2 {[%emt 0:00:05]} c6 {[%emt 0:00:42]} 8. f3 {[%emt 0:00:07]} e5 {[%emt 0:04:13]} 9. d5 {[%emt 0:00:25]} cxd5 {[%emt 0:00:05]} 10. cxd5 {[%emt 0:00:06]} Bd7 {[%emt 0:00:08]} 11. g4 {[%emt 0:04:55]} Rb8 {[%emt 0:14:32] [#] E73: King's Indian: Averbakh Variation without 6...c5.} 12. Rb1 $146 {[%emt 0:05:52]} ({Predecessor:} 12. h4 b5 13. h5 b4 14. Nd1 Nc5 15. Ne3 Qa5 16. Nc4 Qa4 17. Qd1 Qxd1+ 18. Rxd1 Nb7 19. h6 {1-0 (39) Campossano Camo,R-Llacsahuanga,D (2064) Piura 2013}) 12... b5 {[%emt 0:10:54]} (12... Qa5 {looks sharper.} 13. Kf1 Rfc8 14. b4 Qc7) 13. b4 $1 {[%emt 0:01:56] Prevents Qa5.} Nc7 {[%emt 0:00:04][%cal Oh7h6] White is slightly better.} 14. h4 {[%emt 0:09:03][%cal Bh2h4,Bh4h5][%mdl 32]} Na8 {[%emt 0:02:29]} 15. h5 {[%emt 0:04:18]} a6 {[%emt 0:00:42]} 16. Bd3 {[%emt 0:05:27]} Nb6 {[%emt 0:10:54]} 17. Nge2 {[%emt 0:03:35]} Rc8 {[%emt 0:00:40]} 18. Ng3 {[%emt 0:06:05]} Nc4 {[%emt 0:08:15]} 19. Bxc4 {[%emt 0:03:50]} Rxc4 {[%emt 0:00:06]} 20. Nce2 {[%emt 0:18:27]} Qe7 {[%emt 0:18:53]} 21. Nf5 $2 {[%emt 0:03:02][%mdl 8192]} Bxf5 $2 {[%emt 0:14:01]} (21... gxf5 $19 22. gxf5 Rfc8) 22. gxf5 $11 {[%emt 0:00:54]} Rfc8 {[%emt 0:00:20]} 23. Bh6 $2 {[%emt 0:14:40][%mdl 8192] White is on the road to losing.} (23. hxg6 $11 {and White has nothing to worry.} hxg6 24. fxg6) 23... Rc2 $19 {[%emt 0:00:46]} ({And not} 23... Nxh5 24. Qg5 Qxg5 25. Bxg5 $17) 24. Qg5 {[%emt 0:00:13]} (24. Rc1 $142 Bxh6 25. Qxh6 Nxh5 26. Rxc2 Rxc2 27. a3) 24... Bxh6 {[%emt 0:00:09]} 25. Qxh6 {[%emt 0:00:08][%cal Rh5g6]} Nxh5 {[%emt 0:02:01] [#] Strongly threatening ...Qc7.} 26. Rxh5 {[%emt 0:01:31]} (26. Ra1 $142) 26... gxh5 {[%emt 0:00:14]} 27. f6 {[%emt 0:00:57][%csl Gf6][%cal Rh6g7]} Qf8 {[%emt 0:00:05] Inhibits Qg7+.} 28. Qxh5 {[%emt 0:01:27]} Kh8 {[%emt 0:00:10] Threatens to win with ...Qg8.} 29. f4 {[%emt 0:10:27]} exf4 {[%emt 0:00:24] White must now prevent ...Qg8.} 30. Rb3 {[%emt 0:00:40]} Qg8 {[%emt 0:01:23]} 31. Rh3 {[%emt 0:01:13] [#]} Rxe2+ $1 {[%emt 0:06:37]} 32. Kxe2 {[%emt 0:00:02] KQR-KQR} Qg2+ {[%emt 0:00:07]} 33. Kd1 {[%emt 0:00:13]} Qc2+ {[%emt 0:02:10]} 34. Ke1 {[%emt 0:00:08]} Qxe4+ {[%emt 0:00:03]} 35. Kd1 {[%emt 0:01:03]} Qd4+ {[%emt 0:01:03]} 36. Ke2 {[%emt 0:00:36]} Rc2+ {[%emt 0:01:18]} 37. Kf3 {[%emt 0:00:20]} Rf2+ {[%emt 0:01:05]} 38. Kg4 {[%emt 0:00:07]} f3+ {[%emt 0:01:29] Black mates.} 39. Kg3 {[%emt 0:00:01]} Rg2+ {[%emt 0:00:17]} 40. Kxf3 {[%emt 0:00:12]} Rf2+ {[%emt 0:00:00] Weighted Error Value: White=0.83/Black=0.34} 0-1

[Event "1st Rio Chess Open 2022"]
[Site "Rio de Janeiro"]
[Date "2022.04.24"]
[Round "6.3"]
[White "Soares, Joao Carlos T. C."]
[Black "Abrantes, Tiago Garrido"]
[Result "1/2-1/2"]
[ECO "D91"]
[WhiteElo "2064"]
[BlackElo "2178"]
[Annotator "TA"]
[PlyCount "69"]
[EventDate "2022.04.18"]
[EventType "swiss"]
[EventCountry "BRA"]
[SourceTitle "playchess.com"]
[Source "ChessBase"]
[SourceQuality "1"]
[TimeControl "5400+30"]

{[%evp 25,69,0,-10,-14,-16,0,23,-10,7,21,78,59,125,97,115,155,156,120,143,0,0,0,0,-8,-14,0,69,-94,69,63,60,0,0,0,0,0,0,-28,-26,-27,-7,-22,-23,-41,0,0]} 1. d4 {[%emt 1:31:00]} Nf6 {[%emt 1:31:00]} 2. c4 {[%emt 0:00:30]} g6 {[%emt 0:00:30]} 3. Nf3 {[%emt 0:00:30]} Bg7 {[%emt 0:00:30]} 4. Nc3 {[%emt 0:00:30]} d5 {[%emt 0:00:30]} 5. Bg5 {[%emt 0:00:30]} Ne4 {[%emt 0:00:30]} 6. cxd5 {[%emt 0:00:30]} Nxg5 {[%emt 0:00:30]} 7. Nxg5 {[%emt 0:00:30]} e6 {[%emt 0:00:30]} 8. Qd2 {[%emt 0:00:30]} exd5 {[%emt 0:00:30]} 9. Qe3+ {[%emt 0:00:30]} Kf8 {[%emt 0:00:30]} 10. Qf4 {[%emt 0:00:30]} Bf6 {[%emt 0:00:30]} 11. h4 {[%emt 0:00:30]} h6 {[%emt 0:00:30]} 12. Nf3 {[%emt 0:00:30] 12.Nxd5 is not played anymore.} Kg7 {[%emt 0:00:30]} 13. O-O-O {[%emt 0:00:30]} Be6 {[%emt 0:00:30]} 14. g4 {[%emt 0:00:30] D91: Grünfeld: 4 Nf3 Bg7 5 Bg5.} Nd7 {[%emt 0:00:30]} 15. e3 {[%emt 0:00:30][%cal Be2e3,Be3d4,Bd4e5][%mdl 32]} c6 {[%emt 0:00:30]} 16. Bd3 {[%emt 0:00:30] White has an edge.} Be7 {[%emt 0:00:30]} 17. Qg3 {[%emt 0:00:30] [#]} c5 $146 {[%emt 0:00:30]} (17... Qb8 $11) ({Predecessor:} 17... Qb8) 18. Kb1 {[%emt 0:00:30][%cal Od3f5] &Bianco is more active.} Qb8 {[%emt 0:00:30]} (18... Rc8 $1 $14) 19. Ne5 {[%emt 0:00:30] Hoping for f4.} cxd4 {[%emt 0:00:30]} 20. exd4 {[%emt 0:00:30] Black must now prevent f4.} Nxe5 {[%emt 0:00:30]} 21. dxe5 {[%emt 0:00:30] [#] And now f4 would win.} h5 {[%emt 0:00:30]} 22. Be2 {[%emt 0:00:30]} (22. gxh5 $16 Rxh5 23. f4) 22... hxg4 $1 $11 {[%emt 0:00:30]} 23. Nxd5 {[%emt 0:00:30]} Qd8 {[%emt 0:00:30][%csl LRd5,LRh4]} 24. Ne3 {[%emt 0:00:30]} Qa5 {[%emt 0:00:30]} 25. Bc4 {[%emt 0:00:30]} Rad8 {[%emt 0:00:30]} (25... Bxc4 $11 26. Nxc4 Qc5) 26. Rxd8 $2 {[%emt 0:00:30] [#]} (26. Bxe6 $1 $14 {was forced to keep a grip.} fxe6 27. Rdg1 (27. Qxg4 Qxe5 28. Rxd8 Rxd8 $16) (27. Nxg4 Rxh4 28. Qf3 Rxh1 $11)) 26... Qxd8 $2 {[%emt 0:00:30]} (26... Bxc4 $17 27. Nxc4 Qxd8) 27. Bxe6 $14 {[%emt 0:00:30]} fxe6 {[%emt 0:00:30]} 28. Qxg4 {[%emt 0:00:30]} ({White should play} 28. Rd1 $1 $14 Qc8 29. Rg1 (29. Nxg4 Qc6 $14) (29. Qxg4 Rxh4 30. Qf3 g5 $11)) 28... Rxh4 $11 {[%emt 0:00:30]} 29. Rxh4 {[%emt 0:00:30]} Bxh4 {[%emt 0:00:30]} 30. Qe2 {[%emt 0:00:30] Against Qd3+} Qd4 {[%emt 0:00:30]} 31. Ng4 {[%emt 0:00:30]} (31. Qf3 $5 {[%cal Rf3b7]}) 31... Bg5 {[%emt 0:00:30]} 32. a3 {[%emt 0:00:30]} a5 {[%emt 0:00:30]} 33. Qf3 {[%emt 0:00:30]} Qd5 {[%emt 0:00:30]} 34. Qe2 {[%emt 0:00:30]} a4 {[%emt 0:00:30]} 35. Qc2 {[%emt 0:00:30] Weighted Error Value: White=0.36/Black=0.32} 1/2-1/2

[Event "1st Rio Chess Open 2022"]
[Site "Rio de Janeiro"]
[Date "2022.04.24"]
[Round "6.4"]
[White "Mekhitarian, Krikor Sevag"]
[Black "Lage, Pedro Ferreira"]
[Result "1-0"]
[ECO "C18"]
[WhiteElo "2569"]
[BlackElo "2100"]
[Annotator "TA"]
[PlyCount "55"]
[EventDate "2022.04.18"]
[EventType "swiss"]
[EventCountry "BRA"]
[SourceTitle "playchess.com"]
[Source "ChessBase"]
[SourceQuality "1"]
[TimeControl "5400+30"]

{[%evp 15,55,26,12,-23,798,780,860,870,854,860,827,838,933,947,532,0,0,0,0,0,0,0,0,0,0,0,184,209,166,0,729,683,439,431,1779,1778,1504,1333,1363,1082,1085,128]} 1. e4 {[%emt 0:00:04]} e6 {[%emt 0:10:32]} 2. d4 {[%emt 0:00:02]} d5 {[%emt 0:00:16]} 3. Nc3 {[%emt 0:00:04]} Bb4 {[%emt 0:00:43]} 4. e5 {[%emt 0:00:03]} c5 {[%emt 0:00:24]} 5. a3 {[%emt 0:00:01]} Bxc3+ {[%emt 0:00:15]} 6. bxc3 {[%emt 0:00:02]} Ne7 {[%emt 0:00:16]} 7. Qg4 {[%emt 0:00:14]} O-O {[%emt 0:00:47]} 8. Bd3 {[%emt 0:00:28]} Nbc6 {[%emt 0:00:20]} 9. Bg5 $1 {[%emt 0:00:57][%mdl 4] Threatens to win with Bf6. is recently more successful than 9.Qh5. C18: French: 3 Nc3 Bb4: Main line: 7 h4 and 7 Qg4.} c4 $2 {[%emt 0:09:51][%mdl 8192] [#]} (9... Qa5 $11 10. Ne2 cxd4) 10. Bf6 $1 $18 {[%emt 0:01:23][%csl Gf6][%cal Rg4g7]} g6 {[%emt 0:01:41] [#]} (10... Ng6 11. Bxd8) 11. Qg5 $1 {[%emt 0:45:34][%cal Og5h6] [#]} Qa5 $146 {[%emt 0:11:27] [#]} ({Predecessor:} 11... cxd3 12. g4 Nxe5 13. dxe5 {1-0 (13) Petrosian,T (2612)-Grigoryan,A (1957) Jermuk 2019}) 12. g4 $1 {[%emt 0:02:48][%cal Og5h6] Intending Qh6! and mate.} Qxc3+ {[%emt 0:03:35]} 13. Kf1 {[%emt 0:00:24][%cal Og5h6]} Qxa1+ {[%emt 0:10:19]} 14. Kg2 {[%emt 0:00:13][%cal Og5h6]} Qxd4 {[%emt 0:00:29] [#]} 15. Nf3 $2 $40 {[%emt 0:00:54][%mdl 128] Black needs to defend precisely.} Qxg4+ $1 $11 {[%emt 0:10:01]} 16. Qxg4 {[%emt 0:00:15] Dancing on a razor blade.} cxd3 {[%emt 0:00:30]} 17. h4 {[%emt 0:20:08] aiming for h5.} h5 $1 {[%emt 0:03:55]} 18. Qf4 {[%emt 0:03:51]} ({Of course not} 18. Qg5 Nf5 19. cxd3 b6 $15) 18... Nf5 {[%emt 0:02:01] Prevents Qh6.} (18... dxc2 $2 {leads to mate.} 19. Qh6 Nf5 20. Qh8#) 19. cxd3 {[%emt 0:00:51]} Bd7 {[%emt 0:00:51]} 20. Rg1 {[%emt 0:00:21]} Rfc8 $2 {[%emt 0:01:28]} (20... Nce7 $11 {and Black is okay.}) 21. Kh2 $1 $18 {[%emt 0:00:23] Black must now prevent Rg5.} Kf8 {[%emt 0:05:47] [#]} 22. Rg5 $1 {[%emt 0:06:07][%cal Og5f5] White threatens Rxf5! and mate.} Nce7 {[%emt 0:01:27][%mdl 8192] [#]} (22... Ke8 $11) 23. Rxf5 $1 {[%emt 0:02:38][%mdl 512] White is clearly winning.} Nxf5 {[%emt 0:00:47] [#]} 24. Nd4 $1 {[%emt 0:00:02] Threatening mate with Nxf5.} Bc6 {[%emt 0:02:50]} (24... Bb5 $142) 25. Nxf5 {[%emt 0:00:18]} gxf5 {[%emt 0:01:12]} 26. Qg5 {[%emt 0:09:47] White wants to mate with Qg7+.} Bb5 {[%emt 0:02:38]} 27. Qg7+ {[%emt 0:00:38]} Ke8 {[%emt 0:00:02]} 28. Qg8+ {[%emt 0:06:00][%mdl 64] Deflection.  Weighted Error Value: White=0.27 (precise) /Black=0.37} 1-0

[Event "1st Rio Chess Open 2022"]
[Site "Rio de Janeiro"]
[Date "2022.04.24"]
[Round "6.5"]
[White "Di Berardino, Diego Rafael"]
[Black "Lutuima, Amaro"]
[Result "1-0"]
[ECO "A49"]
[WhiteElo "2490"]
[BlackElo "2068"]
[Annotator "TA"]
[PlyCount "66"]
[EventDate "2022.04.18"]
[EventType "swiss"]
[EventCountry "BRA"]
[SourceTitle "playchess.com"]
[Source "ChessBase"]
[SourceQuality "1"]
[TimeControl "5400+30"]

{[%evp 13,66,22,39,39,48,52,47,36,42,30,57,30,33,26,48,10,10,6,51,24,29,23,23,16,23,18,59,35,69,65,104,111,89,106,172,150,126,137,214,183,328,326,345,348,635,583,574,549,881,820,1145,1146,1039,868,762]} 1. d4 {[%emt 0:03:30]} Nf6 {[%emt 0:00:28]} 2. Nf3 {[%emt 0:00:19]} g6 {[%emt 0:00:36]} 3. g3 {[%emt 0:00:11]} Bg7 {[%emt 0:00:18]} 4. Bg2 {[%emt 0:00:05]} O-O {[%emt 0:00:38]} 5. O-O {[%emt 0:00:09]} d6 {[%emt 0:02:20]} 6. b3 {[%emt 0:01:19]} c5 {[%emt 0:01:00]} 7. Bb2 {[%emt 0:00:38]} Na6 {[%emt 0:01:32]} 8. c4 {[%emt 0:01:16] A49: 1 d4 Nf6 2 Nf3 g6 3 g3: Anti-King's Indian systems.} Rb8 {[%emt 0:01:24]} 9. Nc3 {[%emt 0:02:22] [#]} d5 $146 {[%emt 0:10:31]} ({Predecessor:} 9... Bf5 10. Rc1 Qd7 11. Qd2 Ne4 12. Nxe4 Bxe4 13. Rfd1 cxd4 14. Bxd4 Nc5 15. Bxc5 {1-0 (15) Jianu,V (2532)-Pertinez Soria,J (2165) Chess.com INT 2020}) 10. cxd5 {[%emt 0:08:11] White is slightly better.} Nxd5 {[%emt 0:00:24]} 11. Nxd5 {[%emt 0:01:47]} Qxd5 {[%emt 0:00:17]} 12. Ne5 {[%emt 0:01:05]} Qd6 {[%emt 0:11:10] [#]} 13. dxc5 $1 {[%emt 0:10:56]} Qc7 {[%emt 0:01:11]} (13... Nxc5 14. Qxd6) 14. Nd3 {[%emt 0:01:10] White wants to play Bxg7.} Bxb2 {[%emt 0:04:57]} 15. Nxb2 {[%emt 0:00:15]} Qxc5 {[%emt 0:00:25]} (15... Rd8 $5 {[%cal Rd8d1]} 16. Qc1 Nxc5 $11) 16. Nd3 {[%emt 0:01:48]} (16. Rc1 $5 {[%cal Rc1c5]} Qb4 17. Nd3 $14) 16... Qa5 {[%emt 0:01:32]} 17. a3 $36 {[%emt 0:06:45][%mdl 2048] White has good play.} Bf5 {[%emt 0:02:04]} 18. e4 {[%emt 0:03:05]} Be6 {[%emt 0:07:29]} 19. b4 {[%emt 0:01:40]} Qg5 {[%emt 0:01:13]} 20. Qc1 {[%emt 0:03:04]} Qb5 {[%emt 0:01:10]} 21. Qe3 {[%emt 0:00:32]} Rfd8 {[%emt 0:08:38] [#]} 22. Nf4 {[%emt 0:00:45]} Bc4 {[%emt 0:00:50]} 23. Rfc1 {[%emt 0:06:11]} b6 {[%emt 0:03:41]} (23... e6 $16 {might work better.}) 24. Rc3 {[%emt 0:10:26] Black must now prevent Rac1.} Qe5 {[%emt 0:03:06][%cal Od8d3]} 25. Rac1 {[%emt 0:00:12]} Bb5 {[%emt 0:06:16]} (25... b5 $16 {keeps fighting.} 26. Nd3 (26. Qxa7 Ra8 $16) 26... Bxd3) 26. Nd5 $18 {[%emt 0:10:49]} Rb7 {[%emt 0:03:56]} (26... Re8 $142 27. f4 Qg7) 27. f4 {[%emt 0:01:55]} Qe6 {[%emt 0:00:12]} 28. Qd4 {[%emt 0:06:39][%cal Od5f6] And now Nf6+! would win.} Re8 $2 {[%emt 0:09:28]} (28... Qd7 29. Rd1 Rdb8) 29. a4 {[%emt 0:05:47] White is clearly winning.} Bxa4 {[%emt 0:02:49]} 30. Bf1 {[%emt 0:00:04]} Nb8 {[%emt 0:04:46]} 31. b5 {[%emt 0:00:52] Against Bc6} Nd7 {[%emt 0:00:22]} 32. Rc8 {[%emt 0:00:51]} Rb8 {[%emt 0:00:56]} 33. Rxe8+ {[%emt 0:00:12]} Rxe8 {[%emt 0:00:12] Weighted Error Value: White=0.10 (very precise) /Black=0.44} 1-0